bitfinex-derivatives/quotes_SOLF0:USTF0_20250523
["timestamp","ask_amount","ask_price","bid_price","bid_amount"]
[1748021879703,118.22,181.34,181.23,8.54451213]
[1748021879999,5.5148,181.28,181.25,5.5155]
[1748021880191,5.5148,181.28,181.25,110.3555]
[1748021880603,5.5151,181.27,181.25,0.04189751]
[1748021883304,5.5154,181.26,181.25,0.04189751]
[1748021884200,5.5152,181.27,181.25,0.04189751]
[1748021884796,5.5154,181.26,181.25,0.04189751]
[1748021888611,5.5152,181.27,181.25,0.04189751]
[1748021889302,5.55190792,181.28,181.25,0.04189751]
[1748021889507,0.03710792,181.28,181.25,0.04189751]
[1748021890007,5.55200792,181.28,181.25,5.55739751]
[1748021890607,0.03710792,181.28,181.26,5.5154]
[1748021892407,5.55200792,181.28,181.26,5.5154]
[1748021896211,5.55200792,181.28,181.25,5.55759751]
[1748021896513,0.03710792,181.28,181.25,0.04189751]
[1748021896708,0.03710792,181.28,181.26,5.5153]
[1748021897614,5.55190792,181.28,181.26,5.5153]
[1748021898117,0.03710792,181.28,181.26,5.5153]
[1748021898914,0.03710792,181.28,181.27,5.5151]
[1748021899111,0.03710792,181.28,181.25,0.04189751]
[1748021899310,5.55190792,181.28,181.25,0.04189751]
[1748021900620,5.55190792,181.28,181.26,5.5153]
[1748021902021,5.55190792,181.28,181.25,5.55749751]
[1748021902415,5.55190792,181.28,181.25,0.04189751]
[1748021903623,5.55190792,181.28,181.26,5.5154]
[1748021903827,5.5151,181.27,181.25,0.04189751]
[1748021904015,0.03710792,181.28,181.25,0.04189751]
[1748021904426,5.5151,181.27,181.25,0.04189751]
[1748021904920,5.5154,181.26,181.25,0.04189751]
[1748021905119,0.03710792,181.28,181.25,0.04189751]
[1748021905428,5.5154,181.26,181.25,0.04189751]
[1748021906026,5.5152,181.27,181.25,0.04189751]
[1748021906525,0.03710792,181.28,181.25,0.04189751]
[1748021907128,5.5151,181.27,181.25,0.04189751]
[1748021908726,5.5154,181.26,181.25,0.04189751]
[1748021918734,5.5152,181.27,181.25,0.04189751]
[1748021919131,0.03710792,181.28,181.25,0.04189751]
[1748021919339,0.03710792,181.28,181.27,5.5151]
[1748021919536,0.03710792,181.28,181.25,0.04189751]
[1748021920138,0.03710792,181.28,181.26,5.5153]
[1748021920438,0.03710792,181.28,181.25,285.04189751]
[1748021921141,0.03710792,181.28,181.26,5.5154]
[1748021921933,0.03710792,181.28,181.27,5.5151]
[1748021922134,0.03710792,181.28,181.25,285.04189751]
[1748021922436,0.03710792,181.28,181.26,5.5154]
[1748021923743,5.55200792,181.28,181.26,5.5154]
[1748021924341,0.03710792,181.28,181.26,5.5154]
[1748021924735,0.03710792,181.28,181.27,5.5151]
[1748021924933,0.03710792,181.28,181.27,290.5151]
[1748021925134,7.92e-06,181.28,181.27,290.5151]
[1748021925335,476.64,181.37,181.27,290.52]
[1748021925540,476.64,181.37,181.27,287.0131]
[1748021925841,5.5125,181.36,181.33,5.5133]
[1748021926233,5.55199136,181.36,181.33,5.54841071]
[1748021927647,5.5129,181.35,181.33,0.03511071]
[1748021928448,0.03949136,181.36,181.33,0.03511071]
[1748021928645,0.03949136,181.36,181.33,104.85511071]
[1748021928843,5.55209136,181.36,181.33,110.36831071]
[1748021929139,0.03949136,181.36,181.33,104.85511071]
[1748021929339,0.03949136,181.36,181.34,5.513]
[1748021929541,0.03949136,181.36,181.33,104.85511071]
[1748021929941,5.513,181.34,181.33,104.85511071]
[1748021931349,5.513,181.34,181.33,0.03511071]
[1748021932549,5.5128,181.35,181.33,0.03511071]
[1748021933344,5.513,181.34,181.33,0.03511071]
[1748021937750,0.03949136,181.36,181.33,0.03511071]
[1748021938047,0.03949136,181.36,181.34,5.513]
[1748021938351,0.03949136,181.36,181.33,0.03511071]
[1748021938754,0.03949136,181.36,181.33,285.03511071]
[1748021939457,0.03949136,181.36,181.35,5.5127]
[1748021939656,0.03949136,181.36,181.33,285.03511071]
[1748021940047,5.55209136,181.36,181.33,290.54841071]
[1748021940552,0.03949136,181.36,181.34,5.5129]
[1748021941659,5.55189136,181.36,181.34,5.5129]
[1748021942762,5.55189136,181.36,181.33,290.54831071]
[1748021943556,5.55189136,181.36,181.34,5.513]
[1748021943758,0.03949136,181.36,181.34,5.513]
[1748021943959,0.03949136,181.36,181.33,285.03511071]
[1748021944260,0.03949136,181.36,181.35,5.5127]
[1748021947458,0.03949136,181.36,181.33,285.03511071]
[1748021948059,5.5129,181.35,181.33,285.03511071]
[1748021948559,5.513,181.34,181.33,285.03511071]
[1748021948760,5.513,181.34,181.33,0.03511071]
[1748021949757,5.5144,181.3,181.26,104.78]
[1748021950059,118.5561,181.35,181.26,104.78]
[1748021950260,5.5138,181.32,181.28,5.5146]
[1748021950564,118.5561,181.35,181.26,104.78]
[1748021950757,116.68,181.35,181.29,0.0363701]
[1748021950958,0.04195118,181.34,181.29,116.7163701]
[1748021951154,0.04195118,181.34,181.3,3.84018988]
[1748021951356,0.04195118,181.34,181.33,5.5133]
[1748021952055,116.68,181.4,181.39,5.5115]
[1748021953162,116.68,181.4,181.38,5.55095477]
[1748021953463,116.68,181.4,181.38,0.03925477]
[1748021954059,116.68,181.4,181.39,5.5115]
[1748021954963,116.68,181.4,181.38,5.55095477]
[1748021955263,0.03630986,181.41,181.38,0.03925477]
[1748021956163,5.5112,181.4,181.38,0.03925477]
[1748021958462,5.5115,181.39,181.38,0.03925477]
[1748021961560,5.5133,181.33,181.32,285.0]
[1748021961864,116.52,181.39,181.31,104.76]
[1748021962566,0.03856956,181.37,181.33,0.03862509]
[1748021963363,5.5126,181.36,181.33,0.03862509]
[1748021964465,5.5126,181.36,181.33,5.55182509]
[1748021964954,5.5127,181.35,181.33,0.03862509]
[1748021965151,0.03856956,181.37,181.33,0.03862509]
[1748021965465,5.55076956,181.37,181.33,0.03862509]
[1748021965666,5.55076956,181.37,181.34,5.5128]
[1748021966965,5.5125,181.36,181.34,5.5128]
[1748021967265,0.03856956,181.37,181.34,5.5128]
[1748021967662,0.03856956,181.37,181.33,0.03862509]
[1748021967870,0.03856956,181.37,181.29,285.0]
[1748021968063,0.03856956,181.37,181.27,290.08664792]
[1748021968259,5.5145,181.29,181.27,5.08664792]
[1748021968460,116.54,181.33,181.27,5.08664792]
[1748021968768,0.03595849,181.32,181.28,0.03585328]
[1748021969372,5.5148,181.29,181.28,0.03585328]
[1748021969863,0.03595849,181.32,181.22,285.0]
[1748021970171,8.54451213,181.3,181.2,5.08664792]
[1748021970370,5.5165,181.23,181.2,5.08664792]
[1748021970674,116.54,181.26,181.2,5.08664792]
[1748021970864,0.0398804,181.25,181.21,0.03898117]
[1748021971270,5.5163,181.24,181.21,0.03898117]
[1748021971569,0.0398804,181.25,181.21,0.03898117]
[1748021972473,5.5164,181.23,181.21,0.03898117]
[1748021973065,5.5161,181.24,181.21,0.03898117]
[1748021973864,5.5557804,181.25,181.21,5.55568117]
[1748021974170,5.5557804,181.25,181.21,0.03898117]
[1748021975375,0.0398804,181.25,181.21,0.03898117]
[1748021975575,0.0398804,181.25,181.21,285.03898117]
[1748021975772,0.0398804,181.25,181.24,5.5161]
[1748021975972,116.56,181.31,181.24,389.8]
[1748021976475,116.56,181.31,181.29,5.5145]
[1748021976967,8.54451213,181.3,181.16,288.7586]
[1748021977169,5.5155,181.26,181.17,104.8]
[1748021977371,1.8763,181.29,181.17,104.8]
[1748021977573,1.8763,181.29,181.21,5.517]
[1748021977974,0.04079341,181.27,181.23,0.03697414]
[1748021978175,116.58,181.26,181.23,0.03697414]
[1748021978667,5.5161,181.24,181.17,104.8]
[1748021979677,0.03734229,181.22,181.2,5.517]
[1748021982682,5.55404229,181.22,181.19,5.55714551]
[1748021984179,116.6,181.3,181.2,116.6]
[1748021984376,116.6,181.3,181.2,405.4705]
[1748021984675,5.515,181.28,181.24,5.5158]
[1748021985080,5.55384652,181.28,181.24,5.55420538]
[1748021985578,0.03884652,181.28,181.24,0.03840538]
[1748021986581,5.5153,181.27,181.24,5.55440538]
[1748021987471,5.5155,181.26,181.24,0.03840538]
[1748021987679,0.03884652,181.28,181.24,0.03840538]
[1748021988180,5.5157,181.25,181.24,0.03840538]
[1748021995586,5.5155,181.26,181.24,0.03840538]
[1748021996088,5.5157,181.25,181.24,0.03840538]
[1748022000589,121.9557,181.25,181.24,0.03840538]
[1748022001478,116.44,181.25,181.15,285.0]
[1748022001679,8.54451213,181.23,181.15,285.0]
[1748022002080,5.5185,181.16,181.15,285.0]
[1748022002280,116.44,181.19,181.12,285.0]
[1748022002482,0.04178301,181.17,181.14,0.04133375]
[1748022002793,5.5187,181.16,181.14,0.04133375]
[1748022003184,0.04178301,181.17,181.14,0.04133375]
[1748022003386,5.56008301,181.17,181.14,0.04133375]
[1748022003692,0.04178301,181.17,181.14,5.56043375]
[1748022003885,5.56018301,181.17,181.14,5.56043375]
[1748022004189,0.04178301,181.17,181.14,0.04133375]
[1748022004392,5.5187,181.16,181.14,0.04133375]
[1748022004591,0.04178301,181.17,181.14,5.56033375]
[1748022004782,0.04178301,181.17,181.14,0.04133375]
[1748022004984,5.5186,181.16,181.14,0.04133375]
[1748022005785,5.5188,181.15,181.14,0.04133375]
[1748022006291,0.04178301,181.17,181.14,0.04133375]
[1748022006491,5.5188,181.15,181.14,0.04133375]
[1748022007293,5.5188,181.15,181.14,3.375e-05]
[1748022008988,5.5186,181.16,181.14,3.375e-05]
[1748022009191,116.46,181.15,181.14,3.375e-05]
[1748022010192,121.9788,181.15,181.14,3.375e-05]
[1748022015992,125.00451213,181.15,181.04,286.9439]
[1748022016297,8.54451213,181.09,181.02,5.08664792]
[1748022016496,5.5224,181.03,181.02,5.08664792]
[1748022016801,116.5,181.05,180.99,10.61024792]
[1748022017102,0.03609458,181.04,181.0,0.03861413]
[1748022018205,116.52,181.11,181.0,231.99772626]
[1748022018502,122.0402,181.11,181.0,231.95911213]
[1748022018801,116.52,181.11,181.03,8.54451213]
[1748022018997,116.52,181.15,181.04,3.739]
[1748022019193,0.03715711,181.11,181.08,0.04118726]
[1748022019396,0.03715711,181.11,181.1,5.5203]
[1748022022105,116.52,181.15,181.08,0.04118726]
[1748022022300,116.32,181.19,181.08,0.04118726]
[1748022022500,5.5191,181.14,181.07,104.92]
[1748022022697,116.32,181.19,181.07,104.92]
[1748022022899,0.03905505,181.15,181.11,0.0402401]
[1748022023098,5.55805505,181.15,181.11,5.5599401]
[1748022023394,0.03905505,181.15,181.11,5.5599401]
[1748022023606,5.5193,181.14,181.11,5.5599401]
[1748022023905,0.03905505,181.15,181.12,5.5196]
[1748022024106,0.03905505,181.15,181.11,0.0402401]
[1748022024903,5.55805505,181.15,181.11,0.0402401]
[1748022025209,0.03905505,181.15,181.11,0.0402401]
[1748022025407,5.5192,181.14,181.11,0.0402401]
[1748022025707,0.03905505,181.15,181.11,0.0402401]
[1748022025910,5.5194,181.13,181.11,0.0402401]
[1748022027306,0.03905505,181.15,181.11,0.0402401]
[1748022027307,5.5197,181.12,181.11,0.0402401]
[1748022030005,5.5197,181.12,181.11,4.01e-05]
[1748022031911,5.5218,181.06,181.03,104.92]
[1748022032812,5.56417467,181.06,181.03,104.95473329]
[1748022033012,5.56417467,181.06,181.03,110.47713329]
[1748022033316,0.04237467,181.06,181.03,110.47713329]
[1748022034013,0.04237467,181.06,181.03,104.95473329]
[1748022035908,0.04237467,181.06,181.04,5.5219]
[1748022036115,116.32,181.09,181.03,104.95473329]
[1748022036911,116.32,181.13,181.04,1.9067]
[1748022037106,0.0393466,181.1,181.08,5.5207]
[1748022038914,5.5596466,181.1,181.07,5.55970245]
[1748022039210,5.5596466,181.1,181.07,0.03860245]
[1748022039516,5.5596466,181.1,181.07,5.55970245]
[1748022040514,0.0393466,181.1,181.07,0.03860245]
[1748022042019,5.5597466,181.1,181.07,0.03860245]
[1748022042318,0.0393466,181.1,181.07,0.03860245]
[1748022042721,5.5598466,181.1,181.07,5.55960245]
[1748022043013,0.0393466,181.1,181.07,0.03860245]
[1748022043217,0.0393466,181.1,181.09,5.5206]
[1748022044406,0.0393466,181.1,181.09,290.5206]
[1748022044608,0.0393466,181.1,181.09,285.0]
[1748022045113,5.5596466,181.1,181.09,285.0]
[1748022045317,0.0393466,181.1,181.07,0.03860245]
[1748022046018,5.5208,181.09,181.07,5.55980245]
[1748022046220,0.0393466,181.1,181.07,5.55980245]
[1748022046720,5.5598466,181.1,181.07,5.55980245]
[1748022047020,0.0393466,181.1,181.07,5.55980245]
[1748022047223,5.5208,181.09,181.07,0.03860245]
[1748022047617,0.0393466,181.1,181.07,0.03860245]
[1748022047920,5.5206,181.09,181.07,0.03860245]
[1748022050524,0.0393466,181.1,181.07,0.03860245]
[1748022051925,0.0393466,181.1,181.08,5.5207]
[1748022052424,0.0393466,181.1,181.07,0.03860245]
[1748022053624,0.0393466,181.1,181.09,5.5206]
[1748022053824,0.0393466,181.1,181.07,0.03860245]
[1748022054212,5.5596466,181.1,181.08,5.5207]
[1748022054421,0.0393466,181.1,181.07,0.03860245]
[1748022056320,0.0393466,181.1,181.07,5.55980245]
[1748022056512,0.0393466,181.1,181.07,0.03860245]
[1748022057728,5.5208,181.09,181.07,0.03860245]
[1748022060626,0.0393466,181.1,181.07,0.03860245]
[1748022061315,0.0393466,181.1,181.08,5.5207]
[1748022061515,0.0393466,181.1,181.07,0.03860245]
[1748022061926,0.0393466,181.1,181.09,5.5206]
[1748022063130,116.12,181.18,181.08,116.12]
[1748022063429,5.5187,181.16,181.08,403.1012]
[1748022063623,116.12,181.18,181.12,5.5194]
[1748022064026,0.03631858,181.17,181.13,0.03690666]
[1748022064531,0.03631858,181.17,181.13,5.55630666]
[1748022064729,5.5187,181.16,181.13,5.55630666]
[1748022065032,0.03631858,181.17,181.13,5.55630666]
[1748022065234,5.5185,181.16,181.13,5.55630666]
[1748022065432,0.03631858,181.17,181.13,5.55630666]
[1748022065826,0.03631858,181.17,181.13,0.03690666]
[1748022066233,5.5191,181.14,181.13,0.03690666]
[1748022066734,0.03631858,181.17,181.13,0.03690666]
[1748022066934,5.5188,181.15,181.13,0.03690666]
[1748022067231,0.03631858,181.17,181.13,0.03690666]
[1748022067534,5.5187,181.16,181.13,5.55630666]
[1748022067928,0.03631858,181.17,181.13,0.03690666]
[1748022068226,5.5185,181.16,181.13,0.03690666]
[1748022068433,0.03631858,181.17,181.13,0.03690666]
[1748022068934,5.5189,181.15,181.13,0.03690666]
[1748022069234,0.03631858,181.17,181.13,0.03690666]
[1748022069432,5.5191,181.14,181.13,0.03690666]
[1748022070534,0.03631858,181.17,181.13,0.03690666]
[1748022070535,5.5188,181.15,181.13,0.03690666]
[1748022071729,0.03631858,181.17,181.13,0.03690666]
[1748022072529,0.03631858,181.17,181.13,5.55630666]
[1748022073939,5.5185,181.16,181.14,5.519]
[1748022074237,0.03631858,181.17,181.13,0.03690666]
[1748022074436,5.55451858,181.17,181.13,0.03690666]
[1748022074837,5.55451858,181.17,181.14,5.5189]
[1748022076137,0.03631858,181.17,181.13,5.55620666]
[1748022076333,0.03631858,181.17,181.13,0.03690666]
[1748022076641,5.5187,181.16,181.13,5.55630666]
[1748022076837,0.03631858,181.17,181.13,0.03690666]
[1748022077838,0.03631858,181.17,181.15,5.5186]
[1748022078030,0.03631858,181.17,181.13,0.03690666]
[1748022078430,0.03631858,181.17,181.16,5.5185]
[1748022084040,115.84,181.26,181.16,104.88]
[1748022085036,115.84,181.26,181.19,0.03988506]
[1748022085232,0.03638797,181.23,181.2,5.5172]
[1748022085635,0.03638797,181.23,181.19,0.03988506]
[1748022086439,5.517,181.21,181.19,0.03988506]
[1748022086942,5.5168,181.22,181.19,5.55748506]
[1748022087748,0.03638797,181.23,181.19,0.03988506]
[1748022088740,5.5173,181.2,181.19,0.03988506]
[1748022089340,5.519,181.15,181.1,9.08804792]
[1748022089542,124.38451213,181.21,181.1,9.08804792]
[1748022089846,1.9297,181.2,181.1,5.08664792]
[1748022090037,5.5192,181.14,181.11,5.52]
[1748022090346,5.55550118,181.14,181.11,5.55708887]
[1748022090946,5.5194,181.13,181.11,5.55708887]
[1748022091148,0.03630118,181.14,181.11,0.03708887]
[1748022091646,5.5197,181.12,181.11,0.03708887]
[1748022093245,0.03630118,181.14,181.11,0.03708887]
[1748022093946,5.55560118,181.14,181.11,0.03708887]
[1748022094146,5.55560118,181.14,181.11,5.55688887]
[1748022094349,5.5194,181.13,181.11,5.55688887]
[1748022094653,0.03630118,181.14,181.11,5.55688887]
[1748022095150,5.55560118,181.14,181.11,5.55688887]
[1748022095657,0.03630118,181.14,181.11,5.55688887]
[1748022095950,5.5194,181.13,181.11,0.03708887]
[1748022096347,0.03630118,181.14,181.11,0.03708887]
[1748022096548,5.55550118,181.14,181.11,0.03708887]
[1748022096856,0.03630118,181.14,181.11,0.03708887]
[1748022097255,5.5197,181.12,181.11,0.03708887]
[1748022097956,5.5195,181.13,181.11,0.03708887]
[1748022098160,0.03630118,181.14,181.11,0.03708887]
[1748022098355,5.5196,181.13,181.11,0.03708887]
[1748022098554,0.03630118,181.14,181.11,0.03708887]
[1748022099258,5.5197,181.12,181.11,0.03708887]
[1748022100856,5.5209,181.08,181.05,5.5218]
[1748022101856,0.04164948,181.08,181.05,0.04066106]
[1748022102560,5.5214,181.07,181.05,0.04066106]
[1748022103266,5.56264948,181.08,181.05,0.04066106]
[1748022103563,0.04164948,181.08,181.05,0.04066106]
[1748022103765,0.04164948,181.08,181.05,5.56246106]
[1748022104067,0.04164948,181.08,181.05,0.04066106]
[1748022104256,0.04164948,181.08,181.07,5.5212]
[1748022108270,0.04164948,181.08,181.06,5.5214]
[1748022109071,0.04164948,181.08,181.07,5.5212]
[1748022109767,0.04164948,181.08,181.06,5.5213]
[1748022110064,0.04164948,181.08,181.05,0.04066106]
[1748022110370,0.04164948,181.08,181.06,5.5215]
[1748022112473,0.04164948,181.08,181.07,5.5212]
[1748022112670,0.04164948,181.08,181.05,0.04066106]
[1748022113075,5.56254948,181.08,181.06,5.5214]
[1748022113273,0.04164948,181.08,181.06,5.5214]
[1748022113672,0.04164948,181.08,181.05,5.56236106]
[1748022113880,0.04164948,181.08,181.05,0.04066106]
[1748022114581,5.5215,181.06,181.05,0.04066106]
[1748022117282,5.5213,181.07,181.05,0.04066106]
[1748022117773,5.56264948,181.08,181.05,0.04066106]
[1748022117973,5.56264948,181.08,181.05,5.56236106]
[1748022118480,0.04164948,181.08,181.06,5.5212]
[1748022118788,0.04164948,181.08,181.05,0.04066106]
[1748022119082,0.04164948,181.08,181.07,5.5212]
[1748022124577,0.04164948,181.08,181.06,5.5214]
[1748022124885,0.04164948,181.08,181.05,0.04066106]
[1748022125083,0.04164948,181.08,181.06,5.5215]
[1748022125282,0.04164948,181.08,181.05,0.04066106]
[1748022125785,5.5215,181.06,181.05,0.04066106]
[1748022125984,121.2015,181.06,181.05,0.04066106]
[1748022129689,115.68,181.06,181.05,0.04066106]
[1748022130087,115.68,181.06,181.05,5.56246106]
[1748022135988,115.68,181.06,181.05,0.04066106]
[1748022136791,121.2015,181.06,181.05,0.04066106]
[1748022138698,5.5234,181.0,180.97,5.5241]
[1748022138883,124.22451213,181.06,180.95,115.68]
[1748022139084,8.54451213,181.03,180.93,10.84124792]
[1748022139291,8.54451213,181.03,180.93,5.08664792]
[1748022139590,5.5252,180.94,180.93,5.08664792]
[1748022140500,0.03718271,180.95,180.93,5.08664792]
[1748022141293,0.03718271,180.95,180.94,5.5252]
[1748022141493,115.72,181.06,180.93,19.15116005]
[1748022141697,115.72,181.06,180.94,1.9991]
[1748022142000,5.5221,181.05,180.94,1.9991]
[1748022142186,115.72,181.06,180.94,1.9991]
[1748022142387,0.0388905,181.02,180.98,0.0371007]
[1748022142696,115.72,181.01,180.98,0.0371007]
[1748022143101,115.72,181.01,180.99,5.5237]
[1748022143293,115.72,181.01,180.98,0.0371007]
[1748022143690,115.72,181.01,181.0,5.5234]
[1748022143898,0.0388905,181.02,180.98,0.0371007]
[1748022144199,0.0388905,181.02,181.01,5.5231]
[1748022144900,0.0388905,181.02,180.99,5.5234]
[1748022145200,0.0388905,181.02,180.98,0.0371007]
[1748022147199,0.0388905,181.02,181.01,5.5231]
[1748022147399,0.0388905,181.02,180.98,0.0371007]
[1748022148208,0.0388905,181.02,180.99,5.5236]
[1748022148498,0.0388905,181.02,180.98,0.0371007]
[1748022149297,5.5618905,181.02,180.98,5.5608007]
[1748022149508,0.0388905,181.02,180.98,5.5608007]
[1748022149701,0.0388905,181.02,180.98,0.0371007]
[1748022150106,5.5233,181.01,180.98,0.0371007]
[1748022150305,0.0388905,181.02,180.98,0.0371007]
[1748022152606,5.5237,180.99,180.98,0.0371007]
[1748022157200,5.5237,180.99,180.98,7e-07]
[1748022158106,121.0235,181.0,180.98,7e-07]
[1748022158310,115.5,181.0,180.98,7e-07]
[1748022158506,0.0388905,181.02,180.98,7e-07]
[1748022159015,0.0388905,181.02,181.01,5.5231]
[1748022160210,115.5,181.04,181.03,5.5224]
[1748022160512,598.261,181.08,180.98,124.04451213]
[1748022160710,592.74,181.08,180.98,124.04451213]
[1748022161214,0.04148098,181.05,181.01,0.04025299]
[1748022163514,0.04148098,181.05,181.01,285.04025299]
[1748022163719,0.04148098,181.05,181.04,5.5221]
[1748022164108,0.04148098,181.05,181.04,290.5221]
[1748022164307,5.5202,181.11,181.04,389.98]
[1748022164607,115.5,181.12,181.04,389.98]
[1748022164904,115.5,181.12,181.05,5.5218]
[1748022165110,115.5,181.12,181.04,285.0]
[1748022165311,0.03948278,181.1,181.06,0.0391943]
[1748022165910,5.5209,181.09,181.06,0.0391943]
[1748022166116,0.03948278,181.1,181.06,0.0391943]
[1748022166608,5.5212,181.07,181.06,0.0391943]
[1748022169018,0.03948278,181.1,181.06,0.0391943]
[1748022170315,5.5212,181.07,181.06,0.0391943]
[1748022171520,121.0012,181.07,181.06,0.0391943]
[1748022176920,115.48,181.07,181.06,0.0391943]
[1748022179022,121.0012,181.07,181.06,0.0391943]
[1748022182521,0.03948278,181.1,181.06,0.0391943]
[1748022183222,5.55988278,181.1,181.07,5.521]
[1748022183428,5.55988278,181.1,181.06,0.0391943]
[1748022183629,5.55988278,181.1,181.07,5.521]
[1748022183934,5.5206,181.09,181.07,5.521]
[1748022184228,0.03948278,181.1,181.07,5.521]
[1748022184523,5.55988278,181.1,181.07,5.521]
[1748022185427,0.03948278,181.1,181.07,5.521]
[1748022185827,0.03948278,181.1,181.06,5.5606943]
[1748022186033,5.5208,181.09,181.06,5.5606943]
[1748022186229,0.03948278,181.1,181.06,0.0391943]
[1748022186429,5.56008278,181.1,181.07,5.521]
[1748022186732,0.03948278,181.1,181.06,0.0391943]
[1748022187225,8.54451213,181.08,180.97,110.02664792]
[1748022187419,8.54451213,181.08,180.98,1.9596]
[1748022187931,8.54451213,181.08,180.98,7.4834]
[1748022188432,0.03877251,181.05,181.01,0.0368118]
[1748022188625,115.28,181.04,181.01,0.0368118]
[1748022189333,5.5225,181.03,181.01,0.0368118]
[1748022189631,115.28,181.04,181.01,0.0368118]
[1748022189933,120.8024,181.04,181.01,5.5598118]
[1748022190734,115.28,181.04,181.01,0.0368118]
[1748022190929,0.03877251,181.05,181.01,0.0368118]
[1748022191323,0.03877251,181.05,181.03,5.5222]
[1748022191632,0.03877251,181.05,181.01,0.0368118]
[1748022191827,0.03877251,181.05,181.01,285.0368118]
[1748022192030,0.03877251,181.05,181.04,5.5222]
[1748022192926,0.03877251,181.05,181.03,5.5224]
[1748022193127,0.03877251,181.05,181.02,1.9515]
[1748022194125,0.03877251,181.05,181.03,5.5223]
[1748022194433,0.03877251,181.05,181.04,5.5222]
[1748022194937,0.03877251,181.05,181.03,5.5224]
[1748022195233,0.03877251,181.05,181.01,285.0368118]
[1748022195434,5.5227,181.03,181.01,0.0368118]
[1748022195728,0.03877251,181.05,181.01,0.0368118]
[1748022196034,5.5226,181.03,181.01,0.0368118]
[1748022196226,0.03877251,181.05,181.01,0.0368118]
[1748022197134,5.5228,181.02,181.01,0.0368118]
[1748022198931,5.5228,181.02,181.01,1.18e-05]
[1748022199137,5.5243,180.97,180.96,285.0]
[1748022199432,115.28,181.03,180.92,391.9242]
[1748022199634,5.5231,181.01,180.92,391.9242]
[1748022200038,0.03581403,180.98,180.95,0.03541857]
[1748022200342,0.03581403,180.98,180.95,285.03541857]
[1748022200637,0.03581403,180.98,180.97,5.5243]
[1748022201431,0.03581403,180.98,180.95,285.03541857]
[1748022201937,5.56001403,180.98,180.95,285.03541857]
[1748022202236,5.56001403,180.98,180.95,290.56011857]
[1748022203540,5.5243,180.97,180.95,5.56011857]
[1748022203739,5.5243,180.97,180.95,0.03541857]
[1748022204239,5.5246,180.96,180.95,0.03541857]
[1748022206439,5.5244,180.97,180.95,0.03541857]
[1748022209746,115.33581403,180.98,180.95,0.03541857]
[1748022210350,120.85981403,180.98,180.95,5.56011857]
[1748022210842,120.85981403,180.98,180.95,0.03541857]
[1748022211039,120.85981403,180.98,180.95,5.56021857]
[1748022211846,115.33581403,180.98,180.95,0.03541857]
[1748022212241,120.85981403,180.98,180.95,5.56011857]
[1748022212448,115.33581403,180.98,180.95,0.03541857]
[1748022212644,123.88032616,180.98,180.84,5.08664792]
[1748022212849,5.5268,180.89,180.86,5.5276]
[1748022213144,115.16,180.91,180.84,5.08664792]
[1748022213455,5.5274,180.87,180.84,10.61484792]
[1748022213654,5.56454312,180.87,180.84,10.65155423]
[1748022214048,5.528,180.85,180.84,5.12335423]
[1748022214253,115.19714312,180.87,180.84,5.12335423]
[1748022215254,5.5277,180.86,180.84,5.12335423]
[1748022215445,115.19714312,180.87,180.84,5.12335423]
[1748022215654,5.528,180.85,180.84,0.03670631]
[1748022216548,5.5277,180.86,180.84,0.03670631]
[1748022217658,120.72454312,180.87,180.84,5.56490631]
[1748022217859,115.19714312,180.87,180.84,0.03670631]
[1748022218459,0.03714312,180.87,180.84,0.03670631]
[1748022218648,0.03714312,180.87,180.84,285.03670631]
[1748022218855,0.03714312,180.87,180.85,5.5278]
[1748022219052,0.03714312,180.87,180.84,0.03670631]
[1748022219462,5.56474312,180.87,180.84,0.03670631]
[1748022219955,0.03714312,180.87,180.84,0.03670631]
[1748022220663,5.5279,180.86,180.84,0.03670631]
[1748022222872,0.03714312,180.87,180.84,0.03670631]
[1748022223562,0.03714312,180.87,180.84,285.03670631]
[1748022224668,0.03714312,180.87,180.85,5.528]
[1748022224968,0.03714312,180.87,180.84,285.03670631]
[1748022225170,0.03714312,180.87,180.86,5.5276]
[1748022228874,0.03714312,180.87,180.85,5.5278]
[1748022229373,0.03714312,180.87,180.86,5.5276]
[1748022230175,0.03714312,180.87,180.85,5.5279]
[1748022231073,5.56444312,180.87,180.84,5.56480631]
[1748022231773,5.56444312,180.87,180.85,5.5279]
[1748022231963,5.56444312,180.87,180.84,0.03670631]
[1748022232167,5.5277,180.86,180.84,0.03670631]
[1748022232374,0.03714312,180.87,180.84,0.03670631]